Cogmind - Beta 15 @@@ ROGUE MODE // 2025.08.29 @ 02:32:25 Player: lepire Result: Self-destructed Performance ------------- Evolutions (2) 1000 Regions Visited (3) 600 Robots Destroyed (30) 150 Value Destroyed (506) 506 Prototype IDs (2) 40 Alien Tech Used (0) 0 Bonus (2) 2 TOTAL SCORE: 2298 Bonus ------- High Alert Combat Kills 2 Cogmind --------- Core Integrity 546/550 Matter 9/300 Energy 87/100 System Corruption 0% Temperature Cool (0) Movement Flying (27) Location -8/Materials Parts ------- > --- POWER (1) -------- (None) > --- PROPULSION (4) --- Improved Flight Unit Surge Thruster Surge Thruster Surge Thruster > --- UTILITY (4) ------ Small Storage Unit Visual Processing Unit > --- WEAPON (2) ------- Grenade Launcher > --- INVENTORY (8) ---- Light Ion Engine Improved Flight Unit Improved Flight Unit Medium Storage Unit Enhanced Autogun Enhanced Autogun Datajack Peak State ------------ > --- POWER ------------ Light Nuclear Core > --- PROPULSION ------- Improved Flight Unit Improved Flight Unit Surge Thruster Surge Thruster > --- UTILITY ---------- Small Storage Unit Visual Processing Unit > --- WEAPON ----------- Enhanced Autogun > --- INVENTORY -------- Light Ion Engine Improved Flight Unit Surge Thruster Medium Storage Unit Enhanced Autogun Grenade Launcher Datajack [Rating: 23] Favorites ----------- Power Light Nuclear Core Engine Ion Engine Power Core Light Nuclear Core Propulsion Hover Unit Leg Aluminum Leg Hover Unit Hover Unit Flight Unit Improved Flight Unit Utility Small Storage Unit Storage Small Storage Unit Processor Visual Processing Unit Weapon Small Laser Energy Gun Small Laser Ballistic Gun Assault Rifle Ballistic Cannon Light Cannon Launcher Grenade Launcher Build | -11 -10 -9 -8 ------- Run | Yrd Mat Mat Mat Slots Evolved 4 | . . 2 2 Power . | . . . . Propulsion 2 | . . 1 1 Utility 2 | . . 1 1 Weapon . | . . . . Parts Attached 24 | 5 10 9 . Power 2 | 1 1 . . Engine 1 | 1 . . . Core 1 | . 1 . . Reactor . | . . . . Propulsion 14 | 2 5 7 . Treads . | . . . . Leg 4 | 2 2 . . Wheel . | . . . . Hover 4 | . 3 1 . Flight 6 | . . 6 . Utility 2 | 1 1 . . Device . | . . . . Storage 1 | 1 . . . Processor 1 | . 1 . . Hackware . | . . . . Protection . | . . . . Artifact . | . . . . Weapon 6 | 1 3 2 . Energy Gun 2 | 1 1 . . Energy Cannon . | . . . . Ballistic Gun 2 | . 1 1 . Ballistic Cannon 1 | . 1 . . Launcher 1 | . . 1 . Special Weapon . | . . . . Impact Weapon . | . . . . Slashing Weapon . | . . . . Piercing Weapon . | . . . . Special Melee Weapon . | . . . . Unidentified Prototypes 2 | . . 2 . Parts Lost 3 | . 1 1 1 Power 1 | . . . 1 Propulsion 2 | . 1 1 . Utility . | . . . . Weapon . | . . . . Highest Loss Streak 1 | . 1 1 1 To Critical Strikes . | . . . . Average Backups 5 | 1 5 5 7 Power . | . 1 1 1 Propulsion 1 | . 1 . 2 Utility . | . 1 1 1 Weapon 1 | . 1 1 2 Tool/Special . | . . . . Unused Backups 7 | . 2 1 4 Power 1 | . . . 1 Propulsion 1 | . 1 . . Utility 2 | . 1 . 1 Weapon 2 | . . 1 1 Tool/Special 1 | . . . 1 Average Slot Usage (%) 79 | . 82 77 70 Engine 3 | . 6 . . Core 8 | . 7 11 7 Leg 9 | . 17 . . Hover 13 | . 10 20 . Flight 6 | . . 11 36 Storage 12 | . 14 11 9 Processor 6 | . 2 11 9 Energy Gun 7 | . 14 . . Ballistic Gun 5 | . 2 11 5 Ballistic Cannon 3 | . 5 . . Peak Build Rating 23 | 5 10 21 23 Average Rating 9 | 3 7 12 21 On Entrance 8 | . 5 9 20 Naked Turns . | . . . . Heaviest Build 15 | 11 14 15 13 Greatest Support 20 | 20 20 18 14 Greatest Overweight (x) 3 | 3 2 2 . Average Overweight (x) . | . . . . Largest Inventory Capacity 8 | 8 8 8 8 Average Capacity 7 | 7 8 8 8 Most Carried 8 | 2 8 8 7 Average Carried 5 | 1 5 5 7 Final Capacity 8 | 8 8 8 8 Final Carried 8 | 2 6 8 7 Class Distribution -------------------- 90% | Mutant 9% | Sprinter Dominant Class ---------------- Mutant | -10/Materials Mutant | -9/Materials Sprinter | -8/Materials Resources | -11 -10 -9 -8 ----------- Run | Yrd Mat Mat Mat Matter Collected 485 | 250 210 25 . Remotely . | . . . . Salvage Created 554 | 89 274 184 7 Parts 48 | 2 19 24 3 Haulers Intercepted 2 | . 1 1 . Recyclers Shooed 2 | . 2 . . Parts Field Recycled . | . . . . Retrieved Matter . | . . . . Parts Self-Destructed . | . . . . Prevented . | . . . . Kills | -11 -10 -9 -8 ------- Run | Yrd Mat Mat Mat Combat Hostiles Destroyed 21 | . 9 12 . Guns 5 | . 4 1 . Cannons 5 | . 5 . . AOE 11 | . . 11 . Classes Destroyed 7 | 1 4 2 . Worker 2 | . . 1 1 Builder 1 | . . 1 . Hauler 2 | . 1 1 . Recycler 1 | 1 . . . Watcher 3 | . 2 1 . Swarmer 14 | . 3 11 . Grunt 7 | . 6 1 . Best Kill Streak 10 | 1 7 10 1 Combat Bots Only 8 | . 7 8 . Max Kills in Single Turn 4 | 1 2 4 1 Gunslinging . | . . . . Exploded 4 | . . 4 . Melee . | . . . . Uniques/NPCs Destroyed . | . . . . Combat | -11 -10 -9 -8 -------- Run | Yrd Mat Mat Mat Hostile Shots Fired 66 | . 45 19 2 Missed 19 | . 10 7 2 Hits 47 | . 35 12 . Projectile 47 | . 35 12 . Damage Taken 591 | . 370 188 33 Core 133 | . 76 53 4 Absorbed by Shields . | . . . . Core Remaining (%) 85 | 100 69 86 . Volleys Fired 75 | 4 44 24 3 Largest 2 | 1 2 2 1 Hottest 80 | 40 80 55 30 Shots Fired 102 | 4 70 25 3 Gun 70 | 4 46 20 . Cannon 24 | . 24 . . Launcher 8 | . . 5 3 Special . | . . . . Kinetic 62 | . 42 20 . Thermal 32 | 4 28 . . Explosive 8 | . . 5 3 Electromagnetic . | . . . . Robot Hit Streak 12 | 4 12 5 . Robot Miss Streak 3 | . 3 2 1 Penetration Max . | . . . . Secondary Targets . | . . . . Shots Hit Robots 62 | 4 47 11 . Core Hits 42 | 2 17 21 2 Critical Kills . | . . . . Critical Parts Destroyed . | . . . . Critical Strikes 3 | . 3 . . Blast 3 | . 3 . . Melee Attacks . | . . . . Impact . | . . . . Slashing . | . . . . Piercing . | . . . . Sneak Attacks . | . . . . Combat Hostiles . | . . . . Follow-up Attacks . | . . . . Damage Inflicted 1476 | 41 665 741 29 Guns 488 | 41 329 118 . Cannons 336 | . 336 . . Explosions 631 | . . 602 29 Melee . | . . . . Ramming 21 | . . 21 . Kinetic 631 | . 513 118 . Thermal 193 | 41 152 . . Explosive 631 | . . 602 29 Electromagnetic . | . . . . Impact . | . . . . Slashing . | . . . . Piercing . | . . . . Highest Corruption . | . . . . Average Corruption . | . . . . Corruption Purged . | . . . . Corruption Blocked . | . . . . Overload Shots . | . . . . Overflow Damage 32 | . . 28 4 Projectiles . | . . . . Explosions 32 | . . 28 4 Melee . | . . . . Knockbacks 8 | . 8 . . Impact . | . . . . Kinetic 6 | . 6 . . Secondary 2 | . 2 . . Self-Inflicted Damage 83 | . . 48 35 Shots 3 | . . 1 2 Rammed 1 | . . 1 . Targets Rammed 1 | . . 1 . Kicked . | . . . . Crushed . | . . . . Highest Temperature 237 | 15 237 18 . Average Temperature 86 | 10 90 13 . Received Heat Transfer 204 | . 171 33 . Siege Activations . | . . . . Martial Activations . | . . . . Shielding Activations . | . . . . Robots Disrupted . | . . . . Combat Hostiles . | . . . . Robots Corrupted . | . . . . Combat Hostiles . | . . . . Parts Fried . | . . . . Impact Corruptions . | . . . . Robots Melted . | . . . . Combat Hostiles . | . . . . Parts Melted . | . . . . Heat Transferred 450 | 100 350 . . Parts Sabotaged . | . . . . Parts Stolen . | . . . . Parts Stripped . | . . . . Power Chain Reactions . | . . . . Alert | -11 -10 -9 -8 ------- Run | Yrd Mat Mat Mat Maximum Alert Level 2 | . . 2 1 Low Security (%) 94 | 100 100 87 72 Level 1 4 | . . 10 27 Level 2 . | . . 2 . Level 3 . | . . . . Level 4 . | . . . . Level 5 . | . . . . High Security . | . . . . Max Security . | . . . . Peak Influence 427 | 5 141 427 220 Initial 180 | . . 47 180 Average 73 | . 73 79 192 Influence Increases 912 | 5 307 540 60 Destroy 0b10 Robot/C 420 | . 180 240 . Destroy 0b10 Robot/NC 45 | 5 15 20 5 Destroy Leader 80 | . 36 44 . Successful Hack 12 | . . 6 6 Select Force Hacks 30 | . 30 . . Disable Machine 75 | . . 60 15 Destroy Structure 55 | . 1 35 19 Partial Spotted 45 | . 15 15 15 Lose Combat Pursuer 150 | . 30 120 . Influence Decreases 702 | 5 194 226 277 Entered New Map 313 | . . 66 247 Time Decay 359 | 5 184 150 20 Lost Part 30 | . 10 10 10 Squads Dispatched 4 | . 1 2 1 Investigation 2 | . 1 . 1 Extermination . | . . . . Reinforcement 2 | . . 2 . Assault . | . . . . Garrison . | . . . . Intercept . | . . . . Searches Triggered . | . . . . Construction Impeded 1 | . . 1 . Haulers Reinforced . | . . . . Active Scanning Responses . | . . . . Cargo Convoy Interrupts . | . . . . Stealth | -11 -10 -9 -8 --------- Run | Yrd Mat Mat Mat Distress Signals 5 | . 1 3 1 Communications Jammed . | . . . . Distress Signals . | . . . . Times Spotted 49 | . 11 32 6 Peak Tracking Total 12 | . 5 12 7 Tactical Retreats 5 | . 1 4 . Traps | -11 -10 -9 -8 ------- Run | Yrd Mat Mat Mat Traps Triggered . | . . . . Indirectly . | . . . . Trap Hack Attempts . | . . . . Triggered . | . . . . Disarmed . | . . . . Reprogrammed . | . . . . Reused . | . . . . Traps Extracted . | . . . . Installed . | . . . . Triggered . | . . . . Machines | -11 -10 -9 -8 ---------- Run | Yrd Mat Mat Mat Machines Disabled 5 | . . 4 1 Max in Single Turn 4 | . . 4 1 Machines Repaired . | . . . . Machines Dismantled . | . . . . Machines Sabotaged . | . . . . Overloaded Fab Kills . | . . . . Hacking | -11 -10 -9 -8 --------- Run | Yrd Mat Mat Mat Machines Accessed 6 | . 3 1 2 Terminals 5 | . 2 1 2 Fabricators . | . . . . Repair Stations . | . . . . Recycling Units 1 | . 1 . . Scanalyzers . | . . . . Garrison Access . | . . . . Total Hacks 17 | . 6 3 8 Successful 5 | . 1 1 3 Failed 12 | . 5 2 5 Catastrophic 1 | . 1 . . Database Lockouts . | . . . . Manual 12 | . 3 3 6 Terminals 16 | . 5 3 8 Fabricators . | . . . . Repair Stations . | . . . . Recycling Units 1 | . 1 . . Scanalyzers . | . . . . Garrison Access . | . . . . Terminal Hacks 3 | . . . 3 Alert Level 1 | . . . 1 Zone Layout 2 | . . . 2 Fabricator Hacks . | . . . . Repair Station Hacks . | . . . . Recycling Unit Hacks . | . . . . Scanalyzer . | . . . . Garrison Access Hacks . | . . . . Unauthorized Hacks 2 | . 1 1 . Terminals 1 | . . 1 . Assimilate 1 | . . 1 . Fabricators . | . . . . Repair Stations . | . . . . Recycling Units 1 | . 1 . . Tunnel 1 | . 1 . . Scanalyzers . | . . . . Garrison Access . | . . . . Data Cores Recovered . | . . . . Used . | . . . . Hacking Detections 5 | . 2 1 2 Full Trace Events 2 | . 1 . 1 Feedback Events . | . . . . Feedback Blocked . | . . . . Robot Schematics Acquired . | . . . . Robots Built . | . . . . Authchips . | . . . . Time . | . . . . Total Robot Build Rating . | . . . . Part Schematics Acquired . | . . . . Parts Built . | . . . . Authchips . | . . . . Time . | . . . . Total Part Build Rating . | . . . . Parts Repaired . | . . . . Time . | . . . . Parts Recycled . | . . . . Recycled Matter . | . . . . Retrieved Matter . | . . . . Retrieved Components . | . . . . Parts Scanalyzed . | . . . . Part Schematics Acquired . | . . . . Parts Damaged . | . . . . Bothacking | -11 -10 -9 -8 ------------ Run | Yrd Mat Mat Mat Used RIF Installer . | . . . . Robots Hacked . | . . . . Non-combat . | . . . . Combat . | . . . . Robot Hacks Applied . | . . . . Relay Couplers Released . | . . . . Fabnet Peak Effective % . | . . . . Robots Rewired . | . . . . Allies Hacked . | . . . . Hacks Repelled . | . . . . Allies | -11 -10 -9 -8 -------- Run | Yrd Mat Mat Mat Total Allies . | . . . . Largest Group . | . . . . Highest-Rated Group . | . . . . Highest-Rated Ally . | . . . . Total Orders . | . . . . Ally Attacks . | . . . . Total Damage . | . . . . Kills . | . . . . Allies Corrupted . | . . . . Allies Melted . | . . . . Intel | -11 -10 -9 -8 ------- Run | Yrd Mat Mat Mat Active Infowar (turns) 438 | . 91 307 40 Optics 438 | . 91 307 40 Robot Analysis Total . | . . . . Derelict Logs Recovered . | . . . . Drone Launches . | . . . . Drone Recoveries . | . . . . Exploration | -11 -10 -9 -8 ------------- Run | Yrd Mat Mat Mat Turns Passed 881 | 89 445 307 40 Spaces Moved 855 | 66 355 326 108 Core 30 | 30 . . . Treads . | . . . . Legs 196 | 36 160 . . Wheels . | . . . . Hover 304 | . 195 109 . Flight 325 | . . 217 108 Fastest Speed 27 | 50 56 32 27 Average Speed 62 | 109 85 41 27 Slowest Speed 200 | 200 190 180 27 Overloaded Moves . | . . . . Propulsion Burnouts . | . . . . Robots Hopped 2 | . . 2 . Potential Cave-ins . | . . . . Cave-ins Triggered . | . . . . Exploration Rate (%) 26 | 4 44 38 18 Regions Visited 3 Branch Regions . Pre-discovered Areas 1 | . 1 . . Known Exits Taken . | . . . . Unknown Exits Taken 3 | 1 1 1 . Scrap Searched . | . . . . Spaces Dug 8 | . . . 8 Terrain Destroyed 56 | . . 34 22 Melee . | . . . . Projectile . | . . . . AOE 56 | . . 34 22 Terrain Rammed . | . . . . Walls Destroyed . | . . . . Machines Disabled . | . . . . Actions | -11 -10 -9 -8 --------- Run | Yrd Mat Mat Mat Total 1087 | 76 427 470 114 Wait 109 | . 3 106 . Move 848 | 65 354 321 108 Hop 2 | . . 2 . Pick Up 11 | 2 8 1 . Fast Attach 9 | 5 3 1 . Attach 6 | . 2 3 1 Detach 3 | . 1 2 . Swap 15 | . 5 8 2 Drop 8 | . 7 1 . Fire 75 | 4 44 24 3 Melee . | . . . . Ram 1 | . . 1 . Kick . | . . . . Crush . | . . . . Escape Stasis . | . . . . Rewire . | . . . . Trap . | . . . . Miscellaneous . | . . . . Route ------- -11/Scrapyard -10/Materials (discovered 2 exits: *Mat / [*Min]) -9/Materials (discovered 2 exits: *Mat / [*Min]) -8/Materials History --------- Turn | Location | Event 13 | -11/Scrapyard | Discovered new exit (range 15) 90 | -11/Scrapyard | Entered Materials 278 | -10/Materials | Destroyed 7 combat bots 315 | -10/Materials | Build established: Mutant 434 | -10/Materials | Discovered new exit (range 13) 523 | -10/Materials | Discovered new exit (range 8) 535 | -10/Materials | Entered another Materials area 535 | -9/Materials | Evolved 2 slots: Propulsion x1, Utility x1 787 | -9/Materials | Discovered new exit (range 10) 825 | -9/Materials | Destroyed 8 combat bots 833 | -9/Materials | Discovered new exit (range 15) 842 | -9/Materials | Entered another Materials area 842 | -8/Materials | Evolved 2 slots: Propulsion x1, Utility x1 882 | -8/Materials | Self-destructed Last Messages --------------- 00847_ Connecting with Terminal... 00847_ Current location identified: Materials >>Layout(Zone) Retrieving Zone 8A layout... Downloaded map data. 00849_ Connecting with Terminal... 00849_ ALERT: Suspicious activity at Terminal M009. Dispatching Investigation squad. 00854_ Connecting with Terminal... >>Alert(Check) Current Alert Level: Low Security >>Layout(Zone) Retrieving Zone 4J layout... Downloaded map data. 00859_ W-25 Informer sends out distress signal. 00871_ Terminal disabled. 00871_ Lgt. Nuclear Core destroyed. 00871_ Destroyed Lgt. Nuclear Core. 00877_ K-01 Serf destroyed. 00878_ The unstable cave ceiling collapses. Map ----- +----------------------------------------------------+ | ?????????????????????????????????????????????????? | | ?????????????????????????????????????????????????? | | ?????????????????????????????????????????????????? | | ?????????????????????????????????????????????????? | | ?????????????????????????????????????????????????? | | ?????????????????????????????????????????????????? | | ?????????????????????????????????????????????????? | | ?????????????????????????????????????????????????? | | ?????????????????????????????????????????????????? | | ?????????????????????????????????????????????????? | | ?????????????????????????????????####????????????? | | ????????????????????????????????? ????????????? | | ????????????????????????????????? ????????????? | | ?????????????????????????????????# #????????????? | | ?????????????????????????????????# #????????????? | | ???????????????????? ??????????# #????????????? | | ???????????????????? #?????????# #????????????? | | ???????????????????# #?????????# #????????????? | | ???????????????????# #?????????# #????????????? | | ???????????????????# ########### ### #? | | ???????????????????# # ! ## = ## #? | | ???????????????????# # "" ##!% ## #? | | ???????????????????# # ""S Y= ############? | | ???????????????????# # "" #???????????? | | ???????????????????# # ! #???????????? | | ???????????????????# # @ T #???????????? | | ???????????????????# # [! ] # ####????????? | | ???????????????????# #! [! ##### ###??????? | | ???????????????????# # #??# ##?????? | | ????????????######## ## #######??# #?????? | | ????????????# ############## #?????? | | ????????????# #?????? | | ????????????# ############+ #?????? | | ????????????# #####+######### # #?????? | | ????????????# # """ """ ## T ### ######### | | ????????????# # """ """ ## #?# # # | | ????????????# # """ """ ## #?# + == # | | ??????? # ## #?# # == # | | ?= # ]## #?# # # | | == ######################?# # # | | == ########??? #?????????# ######### | | == ## ???????????? ########### ######### | | ????# ????????????? # ## # ! | | ????# ?????????????? # / ## # | | ????#??????????????? # + T + """ | | ???????????????????? # ## # """ | | ???????????????????? # ## # """ | | ???????????????????? # ####+######### | | ????????????????????######+######+#### # | | ????????????????? # # | +----------------------------------------------------+ Best States ------------- Heat Dissipation 31 Energy Generation 14 Energy Capacity 250 Matter Stores 300 Matter Capacity 300 Sight Range 18 Terrain Scan Density 10 Evasion (%) 64 Item Schematics ----------------- None Robot Schematics ------------------ None Fabricated ------------ Nothing Repaired ---------- Nothing Alien Tech Used ----------------- None Achievements -------------- True Hacker Challenges ------------ None Game ------ Seed ShadingImpactMace Manual? 0 Play Time 00:18:44 Cumulative 27.5 hours Start 2025.08.29 @ 02:10:55 End 2025.08.29 @ 02:32:25 Sessions 1 Manual Loads 0 Difficulty Rogue Special Mode None Game No. 33 Rogue 3 Adventurer 30 Explorer 0 Win Type - Total 0 Types 0/0/0/0/0/0/0/0/0/0 Lore% 13 Gallery% 19 Achievement% 19 Wizard Run 0 Options --------- Layout 1 ASCII 0 Keyboard 1 Movement Arrows Keybinds 0 Fullscreen 1 Font 24/Smallcaps Map View 50x35 Zoom Use 0% Tactical HUD 1 Map Filters NONE Filters NONE Steam 1 RUN: 9fc4045e-4210-4e6a-a031-35b3df416a0e